fUSD/lending_fUSD_20260404
["ID","MTS","AMOUNT","RATE_DAILY","PERIOD"]
[419704448,1775322641319,-450.9,0.00016,2]
[419704449,1775322641353,-342.26322073,0.00016,2]
[419704464,1775322650492,-518.0,0.00013111,2]
[419704465,1775322650501,-151.58,0.00014363,2]
[419704466,1775322650511,-3.14827521,0.00016,2]
[419704467,1775322650597,-450.0,0.00016,2]
[419704468,1775322650758,-511.42260652,0.00016,2]
[419704517,1775323113535,164.87,7.057e-05,2]
[419704518,1775323113975,164.87,7.429e-05,2]
[419704519,1775323114130,164.87,7.8e-05,2]
[419704520,1775323114327,164.87,8.171e-05,2]
[419704521,1775323115042,164.87,8.543e-05,2]
[419704522,1775323115165,164.87,8.914e-05,2]
[419704523,1775323115212,164.87,9.286e-05,2]
[419704524,1775323115260,164.87,9.657e-05,2]
[419704525,1775323612423,-164.87,0.00010029,2]
[419704526,1775323612444,-1768.2999153,0.00010029,2]
[419704527,1775323612465,-289.8006139,0.00010029,2]
[419704534,1775323832879,-250.0,0.00010307,2]
[419704535,1775323832888,-299.0,0.00010307,2]
[419704536,1775323832898,-164.87,0.000104,2]
[419704537,1775323832907,-164.87,0.00010771,2]
[419704538,1775323832917,-300.0,0.00011029,2]
[419704539,1775323832926,-1200.0,0.00011029,2]
[419704540,1775323832936,-7303.0,0.00011029,2]
[419704541,1775323832946,-150.0,0.0001103,2]
[419704542,1775323832956,-193.0,0.00011031,2]
[419704543,1775323832966,-164.87,0.00011143,2]
[419704544,1775323832976,-2998.91232586,0.000112,2]
[419704545,1775323832986,-250.0,0.00011236,2]
[419704546,1775323832995,-193.0,0.00011337,2]
[419704547,1775323833005,-250.0,0.00011337,2]
[419704548,1775323833014,-164.87,0.00011514,2]
[419704549,1775323833024,-500.0,0.00011519,2]
[419704550,1775323833034,-500.0,0.00011646,2]
[419704552,1775323833044,-2074.24,0.00011755,2]
[419704553,1775323833053,-164.87,0.00011886,2]
[419704554,1775323833062,-420.0,0.00012119,2]
[419704555,1775323833072,-1680.0,0.00012132,2]
[419704556,1775323833082,-200.0,0.00012166,2]
[419704557,1775323833091,-4245.34,0.00012171,2]
[419704558,1775323833101,-164.87,0.00012257,2]
[419704559,1775323833111,-271.640166,0.00012518,2]
[419704560,1775323833120,-879485.26242817,0.00012528,2]
[419704561,1775323833152,-500.0,0.00012527,2]
[419704562,1775323833161,-253.6781311,0.00012528,2]
[419704564,1775323833272,-500.0,0.00012527,2]
[419704565,1775323833283,-1000.36,0.00012528,2]
[419704566,1775323833337,-500.0,0.00012527,2]
[419704567,1775323833347,-500.0,0.00012527,2]
[419704568,1775323833356,-24834.51595659,0.00012528,2]
[419704569,1775323833368,-6904.80468563,0.00012528,2]
[419704579,1775323838477,-500.0,0.00012527,2]
[419704580,1775323838486,-500.0,0.00012527,2]
[419704581,1775323838496,-500.0,0.00012527,2]
[419704582,1775323838506,-500.0,0.00012527,2]
[419704583,1775323838515,-500.0,0.00012527,2]
[419704584,1775323838524,-500.0,0.00012527,2]
[419704585,1775323838534,-500.0,0.00012527,2]
[419704586,1775323838543,-500.0,0.00012527,2]
[419704587,1775323838553,-500.0,0.00012527,2]
[419704588,1775323838562,-370.73457952,0.00012527,2]
[419704589,1775323838571,-500.0,0.00012527,2]
[419704590,1775323838580,-500.0,0.00012527,2]
[419704591,1775323838589,-500.0,0.00012527,2]
[419704592,1775323838598,-500.0,0.00012527,2]
[419704593,1775323838607,-500.0,0.00012527,2]
[419704594,1775323838617,-500.0,0.00012527,2]
[419704595,1775323838626,-1163185.65739851,0.00012528,2]
[419704596,1775323838635,-108001.2783539,0.00012628,2]
[419704597,1775323838645,-164.87,0.00012629,2]
[419704598,1775323838654,-270.6128,0.00012699,2]
[419704599,1775323838663,-2500.0,0.00012699,2]
[419704600,1775323838672,-956.70587198,0.00012699,2]
[419704601,1775323838681,-2069.873,0.00012705,2]
[419704602,1775323838690,-171.379,0.00012705,2]
[419704603,1775323838699,-1188.81946381,0.00012777,2]
[419704604,1775323838708,-437.53094011,0.00012798,2]
[419704605,1775323838718,-500.0,0.00012798,2]
[419704606,1775323838727,-500.0,0.00012798,2]
[419704607,1775323838736,-197.69022012,0.00012798,2]
[419704608,1775323838745,-500.0,0.00012798,2]
[419704609,1775323838754,-500.0,0.00012798,2]
[419704610,1775323838763,-500.0,0.00012798,2]
[419704611,1775323838772,-500.0,0.00012798,2]
[419704612,1775323838782,-500.0,0.00012798,2]
[419704613,1775323838791,-500.0,0.00012798,2]
[419704614,1775323838800,-500.0,0.00012798,2]
[419704616,1775323838809,-500.0,0.00012798,2]
[419704617,1775323838818,-508.40609597,0.00012798,2]
[419704618,1775323838827,-504353.7605,0.00012799,2]
[419704619,1775323838835,-271.79383006,0.00012799,2]
[419704620,1775323838844,-3866.0,0.00012877,2]
[419704621,1775323838855,-151.0,0.00012899,2]
[419704622,1775323838864,-151.0,0.00012899,2]
[419704623,1775323838873,-229.887198,0.00012899,2]
[419704624,1775323838882,-201.67684113,0.00012948,2]
[419704625,1775323838891,-599.93333783,0.00012948,2]
[419704626,1775323838901,-164.87,0.00013,2]
[419704627,1775323838910,-402468.32913904,0.00013048,2]
[419704628,1775323838919,-151.0,0.00013048,2]
[419704629,1775323838929,-151.0,0.00013048,2]
[419704630,1775323838940,-518.0,0.00013111,2]
[419704631,1775323838949,-1188.81946377,0.00013124,2]
[419704633,1775323838959,-956.70587191,0.00013156,2]
[419704634,1775323838969,-204.1259461,0.00013315,2]
[419704635,1775323838979,-587.0,0.00013318,2]
[419704637,1775323838988,-2351.0,0.00013345,2]
[419704638,1775323838997,-164.87,0.00013371,2]
[419704639,1775323839006,-1188.81946377,0.00013471,2]
[419704640,1775323839016,-172.01180661,0.00013598,2]
[419704641,1775323839025,-956.70587191,0.00013614,2]
[419704642,1775323839035,-500.0,0.00013698,2]
[419704643,1775323839044,-500.0,0.00013698,2]
[419704644,1775323839055,-500.0,0.00013698,2]
[419704645,1775323839065,-500.0,0.00013698,2]
[419704646,1775323839076,-500.0,0.00013698,2]
[419704647,1775323839087,-500.0,0.00013698,2]
[419704648,1775323839099,-500.0,0.00013698,2]
[419704649,1775323839109,-500.0,0.00013698,2]
[419704650,1775323839119,-500.0,0.00013698,2]
[419704651,1775323839128,-500.0,0.00013698,2]
[419704652,1775323839139,-500.0,0.00013698,2]
[419704653,1775323839150,-625.0,0.00013698,2]
[419704654,1775323839159,-500.0,0.00013698,2]
[419704655,1775323839169,-512.39809745,0.00013698,2]
[419704656,1775323839178,-500.0,0.00013698,2]
[419704657,1775323839189,-500.0,0.00013698,2]
[419704658,1775323839199,-500.0,0.00013698,2]
[419704659,1775323839208,-500.0,0.00013698,2]
[419704660,1775323839217,-500.0,0.00013698,2]
[419704661,1775323839228,-500.0,0.00013698,2]
[419704662,1775323839239,-500.0,0.00013698,2]
[419704663,1775323839248,-500.0,0.00013698,2]
[419704664,1775323839258,-500.0,0.00013698,2]
[419704665,1775323839268,-230.01375163,0.00013698,2]
[419704666,1775323839278,-150.0,0.00013699,2]
[419704667,1775323839288,-150.0,0.00013699,2]
[419704668,1775323839298,-166.66,0.00013699,2]
[419704669,1775323839309,-500.0,0.00013699,2]
[419704670,1775323839319,-500.0,0.00013699,2]
[419704671,1775323839328,-501.74712556,0.00013699,2]
[419704672,1775323839338,-500.0,0.00013699,2]
[419704673,1775323839347,-306.90768699,0.00013699,2]
[419704674,1775323839356,-500.0,0.00013699,2]
[419704675,1775323839366,-419.18220394,0.00013699,2]
[419704676,1775323839376,-500.0,0.00013699,2]
[419704677,1775323839387,-500.0,0.00013699,2]
[419704678,1775323839398,-500.0,0.00013699,2]
[419704679,1775323839409,-500.0,0.00013699,2]
[419704680,1775323839420,-500.0,0.00013699,2]
[419704681,1775323839429,-500.0,0.00013699,2]
[419704682,1775323839449,-500.0,0.00013699,2]
[419704683,1775323839462,-500.0,0.00013699,2]
[419704684,1775323839472,-451.22561779,0.00013699,2]
[419704685,1775323839483,-500.0,0.00013699,2]
[419704686,1775323839492,-500.0,0.00013699,2]
[419704687,1775323839503,-501.15172574,0.00013699,2]
[419704688,1775323839513,-500.0,0.00013699,2]
[419704689,1775323839524,-500.0,0.00013699,2]
[419704690,1775323839533,-501.18445721,0.00013699,2]
[419704691,1775323839543,-164.87,0.00013743,2]
[419704692,1775323839553,-1188.81946377,0.00013818,2]
[419704693,1775323839563,-166.66,0.00013836,2]
[419704694,1775323839572,-307.35572359,0.0001385,2]
[419704695,1775323839582,-500.0,0.0001385,2]
[419704696,1775323839591,-500.0,0.0001385,2]
[419704697,1775323839601,-602.10958763,0.0001385,2]
[419704698,1775323839611,-200.0,0.00013915,2]
[419704699,1775323839620,-500.0,0.00013915,2]
[419704700,1775323839630,-771.01748645,0.00013915,2]
[419704701,1775323839641,-500.0,0.00013915,2]
[419704702,1775323839650,-500.0,0.00013915,2]
[419704703,1775323839660,-500.0,0.00013915,2]
[419704704,1775323839670,-500.0,0.00013915,2]
[419704705,1775323839680,-174.61919141,0.00013915,2]
[419704706,1775323839689,-500.0,0.00013915,2]
[419704707,1775323839699,-500.0,0.00013915,2]
[419704708,1775323839708,-151.0,0.00013915,2]
[419704709,1775323839717,-500.0,0.00013915,2]
[419704710,1775323839726,-319.32250207,0.00013915,2]
[419704711,1775323839736,-207.78425205,0.00013915,2]
[419704712,1775323839746,-500.0,0.0001397,2]
[419704713,1775323839755,-151.0,0.0001397,2]
[419704714,1775323839765,-150.0,0.00013973,2]
[419704715,1775323839775,-166.66,0.00013973,2]
[419704716,1775323839784,-500.0,0.00014025,2]
[419704717,1775323839794,-956.70587191,0.00014071,2]
[419704718,1775323839804,-500.0,0.0001408,2]
[419704719,1775323839813,-166.66,0.0001411,2]
[419704720,1775323839823,-164.87,0.00014114,2]
[419704721,1775323839833,-1000.0,0.00014161,2]
[419704722,1775323839843,-1188.81946377,0.00014165,2]
[419704723,1775323839853,-150.0,0.00014247,2]
[419704724,1775323839862,-166.66,0.00014247,2]
[419704725,1775323839871,-500.0,0.00014247,2]
[419704726,1775323839882,-1000.0,0.00014247,2]
[419704727,1775323839891,-350.87215084,0.00014247,2]
[419704728,1775323839900,-505.31465094,0.00014247,2]
[419704729,1775323839910,-500.0,0.00014247,2]
[419704730,1775323839920,-1000.0,0.00014247,2]
[419704731,1775323839929,-1081.45389944,0.00014247,2]
[419704732,1775323839939,-1000.0,0.00014247,2]
[419704733,1775323839953,-1000.0,0.00014247,2]
[419704734,1775323839963,-3240.0,0.00014349,2]
[419704735,1775323839973,-271.79383006,0.0001435,2]
[419704736,1775323839983,-800.0,0.00014356,2]
[419704737,1775323839993,-500.0,0.00014356,2]
[419704738,1775323840003,-166.66,0.00014384,2]
[419704739,1775323840013,-326.02015785,0.00014398,2]
[419704740,1775323840023,-150.0,0.000144,2]
[419704741,1775323840034,-150.0,0.000144,2]
[419704742,1775323840044,-150.0,0.000144,2]
[419704743,1775323840055,-150.0,0.000144,2]
[419704744,1775323840065,-150.0,0.000144,2]
[419704745,1775323840075,-150.0,0.000144,2]
[419704746,1775323840085,-150.0,0.000144,2]
[419704747,1775323840094,-150.0,0.000144,2]
[419704748,1775323840104,-181.08010149,0.00014463,2]
[419704749,1775323840114,-1188.81946377,0.00014512,2]
[419704750,1775323840124,-956.70587191,0.00014528,2]
[419704751,1775323840135,-160.9357,0.000146,2]
[419704752,1775323840145,-160.9357,0.000146,2]
[419704753,1775323840155,-160.9357,0.000146,2]
[419704754,1775323840165,-160.9357,0.000146,2]
[419704755,1775323840175,-823.0,0.00014634,2]
[419704756,1775323840185,-1347.0,0.0001468,2]
[419704757,1775323840195,-160.9357,0.000147,2]
[419704758,1775323840204,-160.9357,0.000147,2]
[419704759,1775323840214,-160.9357,0.000147,2]
[419704760,1775323840223,-160.9357,0.000147,2]
[419704761,1775323840233,-166.67,0.00014748,2]
[419704762,1775323840243,-500.0,0.00014781,2]
[419704763,1775323840252,-874.28257311,0.00014795,2]
[419704764,1775323840262,-1003.04138262,0.00014795,2]
[419704765,1775323840273,-1500.0,0.00014795,2]
[419704766,1775323840284,-1500.0,0.00014795,2]
[419704767,1775323840294,-150.0,0.000148,2]
[419704768,1775323840304,-160.9357,0.000148,2]
[419704769,1775323840314,-160.9357,0.000148,2]
[419704770,1775323840323,-160.9357,0.000148,2]
[419704771,1775323840332,-160.9357,0.000148,2]
[419704772,1775323840343,-1188.81946377,0.00014859,2]
[419704773,1775323840353,-160.9357,0.000149,2]
[419704774,1775323840363,-160.9357,0.000149,2]
[419704775,1775323840374,-160.9357,0.000149,2]
[419704776,1775323840383,-160.9357,0.000149,2]
[419704777,1775323840392,-175.924685,0.00014901,7]
[419704778,1775323840403,-150.0,0.00014933,2]
[419704779,1775323840415,-150.0,0.00014933,2]
[419704780,1775323840424,-956.70587191,0.00014985,2]
[419704781,1775323840436,-160.9357,0.00015,2]
[419704782,1775323840446,-160.9357,0.00015,2]
[419704783,1775323840455,-160.9357,0.00015,2]
[419704784,1775323840465,-160.9357,0.00015,2]
[419704785,1775323840474,-187.78006525,0.00015011,2]
[419704786,1775323840484,-7611.71,0.00015038,2]
[419704787,1775323840493,-326.93,0.00015068,2]
[419704788,1775323840503,-3108.0,0.00015178,2]
[419704789,1775323840513,-150.0,0.000152,2]
[419704790,1775323840523,-150.0,0.000152,2]
[419704791,1775323840532,-150.0,0.000152,2]
[419704792,1775323840542,-10000.0,0.00015205,2]
[419704793,1775323840552,-1188.81946377,0.00015206,2]
[419704794,1775323840561,-1738.0,0.00015243,5]
[419704796,1775323840571,-1655.0,0.00015243,5]
[419704798,1775323840580,-293.207809,0.00015248,7]
[419704800,1775323840590,-518.0,0.00015267,2]
[419704801,1775323840600,-183.72624696,0.0001528,2]
[419704802,1775323840610,-518.0,0.000153,2]
[419704803,1775323840620,-198.37111767,0.00015301,2]
[419704804,1775323840629,-189.91601217,0.00015305,2]
[419704805,1775323840639,-168.0,0.00015308,2]
[419704806,1775323840649,-518.0,0.00015323,2]
[419704807,1775323840658,-1000.0,0.00015342,2]
[419704808,1775323840668,-168.0,0.00015357,2]
[419704809,1775323840677,-518.0,0.00015414,2]
[419704810,1775323840687,-491.53,0.00015427,2]
[419704811,1775323840696,-491.54112601,0.00015427,2]
[419704812,1775323840706,-168.0,0.0001543,2]
[419704813,1775323840715,-956.70587191,0.00015443,2]
[419704814,1775323840724,-430.72763848,0.00015457,2]
[419704815,1775323840733,-150.0,0.00015467,2]
[419704816,1775323840743,-150.0,0.00015467,2]
[419704817,1775323840752,-1188.81946377,0.00015553,2]
[419704818,1775323840761,-194.72792766,0.00015559,2]
[419704819,1775323840771,-166.67,0.00015559,2]
[419704820,1775323840783,-160.9357,0.000156,2]
[419704821,1775323840792,-160.9357,0.000156,2]
[419704822,1775323840802,-160.9357,0.000156,2]
[419704823,1775323840811,-160.9357,0.000156,2]
[419704824,1775323840821,-160.9357,0.000156,2]
[419704825,1775323840830,-150.0,0.000156,2]
[419704826,1775323840839,-2000.0,0.000156,2]
[419704827,1775323840848,-291.58606011,0.00015601,2]
[419704828,1775323840858,-386.44030736,0.00015622,2]
[419704829,1775323840868,-474.95385924,0.00015626,2]
[419704830,1775323840878,-291.58606013,0.00015626,2]
[419704831,1775323840887,-2810.0,0.00015635,2]
[419704832,1775323840897,-518.0,0.00015658,2]
[419704833,1775323840907,-2630.15521228,0.0001568,2]
[419704834,1775323840916,-151.0,0.00015705,2]
[419704835,1775323840925,-151.0,0.00015705,2]
[419704836,1775323840935,-800.0,0.00015726,2]
[419704837,1775323840944,-500.0,0.00015726,2]
[419704838,1775323840954,-785.54,0.00015736,2]
[419704839,1775323840963,-151.0,0.00015777,2]
[419704840,1775323840973,-171.678175,0.00015777,2]
[419704841,1775323840983,-151.0,0.00015777,2]
[419704842,1775323840993,-171.678175,0.00015777,2]
[419704843,1775323841003,-171.678175,0.00015777,2]
[419704844,1775323841012,-171.678175,0.00015777,2]
[419704845,1775323841022,-1000.0,0.00015799,2]
[419704846,1775323841031,-1000.0,0.00015799,2]
[419704847,1775323841041,-150.0,0.00015803,2]
[419704848,1775323841051,-1263.0,0.00015803,2]
[419704849,1775323841061,-6019.0,0.00015803,2]
[419704850,1775323841071,-2470.0,0.00015803,2]
[419704851,1775323841080,-151.0,0.00015803,2]
[419704852,1775323841090,-151.0,0.00015803,2]
[419704853,1775323841100,-151.0,0.00015803,2]
[419704854,1775323841110,-151.0,0.00015803,2]
[419704855,1775323841119,-273.978909,0.00015803,2]
[419704856,1775323841129,-966.97617,0.0001584,2]
[419704857,1775323841139,-966.97618,0.0001584,2]
[419704858,1775323841150,-966.97618,0.0001585,2]
[419704859,1775323841159,-200.0,0.00015872,2]
[419704860,1775323841169,-150.0,0.00015892,2]
[419704861,1775323841179,-500.0,0.00015899,2]
[419704862,1775323841191,-604.90515633,0.000159,2]
[419704863,1775323841201,-1188.81946377,0.000159,2]
[419704864,1775323841211,-271.79383006,0.000159,2]
[419704865,1775323841222,-956.70587191,0.000159,2]
[419704866,1775323841232,-2000.0,0.00015901,2]
[419704867,1775323841241,-350.0,0.00015903,2]
[419704868,1775323841251,-245.407609,0.00015909,2]
[419704869,1775323841261,-518.0,0.00015927,2]
[419704870,1775323841271,-1000.0,0.00015931,2]
[419704871,1775323841281,-168.0,0.00015966,2]
[419704872,1775323841290,-1000.0,0.00015986,2]
[419704873,1775323841300,-2308.5746154,0.00015988,2]
[419704874,1775323841310,-345009.8283279,0.00015988,2]
[419704875,1775323842131,-355.19434334,0.00015988,2]
[419704876,1775323842143,-1170.75638054,0.00015988,2]
[419704877,1775323842183,-1083.67622872,0.00015988,2]
[419704878,1775323842192,-151.0,0.00015988,2]
[419704879,1775323842201,-171.678175,0.00015988,2]
[419704880,1775323842210,-150.0,0.00015988,2]
[419704881,1775323842219,-151.0,0.00015988,2]
[419704882,1775323842228,-171.678175,0.00015988,2]
[419704883,1775323842237,-171.678175,0.00015988,2]
[419704884,1775323842246,-171.678175,0.00015988,2]
[419704885,1775323842255,-151.0,0.00015988,2]
[419704886,1775323842264,-151.0,0.00015988,2]
[419704887,1775323842273,-629.88,0.00015988,2]
[419704888,1775323842282,-500.0,0.00015999,2]
[419704889,1775323842291,-518.0,0.00016,2]
[419704890,1775323842300,-150.0,0.00016,2]
[419704891,1775323842310,-150.00000001,0.00016,2]
[419704892,1775323842319,-150.0,0.00016,2]
[419704893,1775323842329,-150.0,0.00016,2]
[419704894,1775323842340,-150.00000001,0.00016,2]
[419704895,1775323842352,-150.0,0.00016,2]
[419704896,1775323842362,-150.0,0.00016,2]
[419704897,1775323842372,-150.0,0.00016,2]
[419704898,1775323842383,-29071.72819126,0.00016,2]
[419704899,1775323842395,-44430.30828333,0.00016,2]
[419704900,1775323843155,-291.97419158,0.00012528,2]
[419704902,1775323843179,-5846.34494456,0.00012528,2]
[419704903,1775323843189,-1875.60359177,0.00016,2]
[419704904,1775323843201,-781.06101906,0.00016,2]
[419704905,1775323843213,-674.66537723,0.00016,2]
[419704906,1775323843224,-4413.77588023,0.00016,2]
[419704907,1775323843240,-1487.0,0.00016,2]
[419704908,1775323843252,-139536.54555308,0.00016,2]
[419704909,1775323843457,-531.6,0.00016,2]
[419704914,1775323846914,-6106.53102283,0.00012903,2]
[419704915,1775323846933,-31.78811331,0.00012903,2]
[419704916,1775323846942,-404.7058577,0.00014424,2]
[419704917,1775323846952,-195.22748013,0.00014424,2]
[419704918,1775323846962,-622.0,0.00015803,2]
[419704919,1775323846972,-7858.59338874,0.00016,2]
[419704924,1775323847764,-4307.74967549,0.00016,2]
[419704925,1775323847820,-1030.1308482,0.00016,2]
[419704926,1775323847832,-1772.92596407,0.00016,2]
[419704927,1775323847843,-2486.60152622,0.00016,2]
[419704928,1775323847854,-250.27703506,0.00016,2]
[419704929,1775323847865,-2343.68669856,0.00016,2]
[419704930,1775323847881,-584.98774244,0.00016,2]
[419704931,1775323847892,-764.86434579,0.00016,2]
[419704932,1775323847904,-2509.07303865,0.00016,2]
[419704933,1775323847915,-977.39604439,0.00016,2]
[419704934,1775323847927,-556.04665421,0.00016,2]
[419704935,1775323848196,-6608.52846166,0.00016,2]
[419704936,1775323848208,-150627.1541315,0.00016,2]
[419704937,1775323848219,-18314.47348714,0.00016,2]
[419704938,1775323848255,-800.47612132,0.00016,2]
[419704939,1775323848267,-4392.49129283,0.00016,2]
[419704940,1775323848278,-743.33980056,0.00016,2]
[419704962,1775324592250,-196.1,0.00010911,2]
[419704963,1775324592272,-803.9,0.00010979,2]
[419704964,1775324593384,-1000.0,0.00010979,2]
[419704965,1775324594110,-48.52,0.00010979,2]
[419704966,1775324594131,-300.86376178,0.00011186,2]
[419704967,1775324594153,-250.0,0.00011213,2]
[419704968,1775324594320,-250.0,0.00011377,2]
[419704969,1775324594342,-150.61623822,0.00011448,2]
[419704970,1775324594524,-149.38376178,0.00011448,2]
[419704971,1775324594547,-300.0,0.00011448,2]
[419704972,1775324594569,-271.79383006,0.00011449,2]
[419704973,1775324594592,-278.82240816,0.00011449,2]
[419704974,1775324594994,-677.88346382,0.00011449,2]
[419704975,1775324595015,-322.11653618,0.00011449,2]
[419704976,1775324595315,-1000.0,0.00011449,2]
[419704977,1775324595719,-1000.0,0.00011449,2]
[419704978,1775324596257,-1000.0,0.00011449,2]
[419704979,1775324596552,-188.97195295,0.00011449,2]
[419704980,1775324596575,-811.02804705,0.000115,2]
[419704981,1775324596944,-876.33211782,0.000115,2]
[419704982,1775324605497,-1000.0,0.00011507,2]
[419704983,1775324606636,-1000.0,0.00011507,2]
[419704984,1775324607555,-1000.0,0.00011507,2]
[419704985,1775324608192,-866.0,0.00011507,2]
[419704986,1775324608214,-134.0,0.00011508,2]
[419704987,1775324608554,-466.0,0.00011508,2]
[419704988,1775324608578,-534.0,0.00011509,2]
[419704989,1775324608972,-1000.0,0.00011509,2]
[419704990,1775324609394,-1000.0,0.00011509,2]
[419704991,1775324609796,-40.67072918,0.00011509,2]
[419704992,1775324609817,-959.32927082,0.0001151,2]
[419704993,1775324610784,-240.67072918,0.0001151,2]
[419704994,1775324614995,759.32927082,0.00011449,2]
[419704995,1775324615017,1000.0,0.00011449,2]
[419704996,1775324615037,1000.0,0.00011449,2]
[419704997,1775324615058,1000.0,0.00011449,2]
[419704998,1775324620439,-1000.0,0.00011449,2]
[419704999,1775324621535,-1000.0,0.00011449,2]
[419705000,1775324622430,-1000.0,0.00011449,2]
[419705001,1775324623534,-1000.0,0.00011449,2]
[419705002,1775324624488,-1000.0,0.00011449,2]
[419705003,1775324625701,-1000.0,0.00011449,2]
[419705004,1775324626930,-1000.0,0.00011449,2]
[419705005,1775324637493,-224.0,0.00011449,2]
[419705006,1775324647201,-535.0,0.00011449,2]
[419705008,1775325031467,-478.50807902,0.00011008,2]
[419705011,1775325031517,-1665.38192098,0.00011008,2]
[419705012,1775325031528,-250.0,0.00011179,2]
[419705013,1775325031538,-183.48515265,0.00011349,2]
[419705014,1775325031547,-2332.23623637,0.00011449,2]
[419705015,1775325031563,-10981.73043083,0.00011449,2]
[419705016,1775325031573,-600.0,0.00011457,2]
[419705017,1775325031583,-3372.75255751,0.00011465,2]
[419705018,1775325031593,-30307.99206162,0.000115,2]
[419705019,1775325031603,-196.1,0.00011518,2]
[419705020,1775325031613,-334.34591024,0.00011536,2]
[419705021,1775325031623,-300.0,0.00011536,2]
[419705022,1775325031633,-1200.0,0.00011537,2]
[419705023,1775325031643,-300.0,0.00011537,2]
[419705024,1775325031654,-150.0,0.00011538,2]
[419705025,1775325031663,-500.0,0.00011539,2]
[419705026,1775325031672,-500.0,0.00011539,2]
[419705027,1775325031682,-500.0,0.00011539,2]
[419705028,1775325031691,-500.0,0.00011539,2]
[419705029,1775325031701,-500.0,0.00011539,2]
[419705030,1775325031712,-500.0,0.00011539,2]
[419705031,1775325031724,-500.0,0.00011539,2]
[419705032,1775325031734,-500.0,0.00011539,2]
[419705033,1775325031743,-151.0,0.00011539,2]
[419705034,1775325031754,-500.0,0.00011539,2]
[419705035,1775325031765,-500.0,0.00011539,2]
[419705036,1775325031775,-151.0,0.00011539,2]
[419705038,1775325031785,-151.0,0.00011539,2]
[419705040,1775325031794,-500.0,0.00011539,2]
[419705042,1775325031803,-500.0,0.00011539,2]
[419705044,1775325031812,-151.0,0.00011539,2]
[419705046,1775325031822,-151.0,0.00011539,2]
[419705048,1775325031831,-500.0,0.00011539,2]
[419705050,1775325031841,-151.0,0.00011539,2]
[419705052,1775325031850,-500.0,0.00011539,2]
[419705055,1775325031861,-151.0,0.00011539,2]
[419705057,1775325031870,-151.0,0.00011539,2]
[419705059,1775325031879,-500.0,0.00011539,2]
[419705061,1775325031889,-151.0,0.00011539,2]
[419705062,1775325031898,-151.0,0.00011539,2]
[419705065,1775325031908,-500.0,0.00011539,2]
[419705067,1775325031919,-151.0,0.00011539,2]
[419705069,1775325031928,-151.0,0.00011539,2]
[419705071,1775325031939,-500.0,0.00011539,2]
[419705073,1775325031951,-151.0,0.00011539,2]
[419705075,1775325031962,-177.58747287,0.00011539,2]
[419705077,1775325031971,-151.0,0.00011539,2]
[419705079,1775325031981,-151.0,0.00011539,2]
[419705081,1775325031990,-151.0,0.00011539,2]
[419705120,1775325032357,-151.0,0.00011539,2]
[419705122,1775325032368,-151.0,0.00011539,2]
[419705124,1775325032378,-151.0,0.00011539,2]
[419705126,1775325032388,-151.0,0.00011539,2]
[419705128,1775325032397,-151.0,0.00011539,2]
[419705130,1775325032406,-151.0,0.00011539,2]
[419705132,1775325032415,-151.0,0.00011539,2]